lending/lending_fUSD_20241025
["ID","MTS","AMOUNT","RATE_DAILY","PERIOD"]
[340817667,1729873838125,-669.31226184,0.0005,120]
[340817668,1729873838134,-479.64732701,0.0005,120]
[340817669,1729873838144,-1126.04041583,0.0005,2]
[340817670,1729873838153,-1058.12903546,0.0005,32]
[340817671,1729873838163,-350.75759145,0.0005,30]
[340817672,1729873838173,-192.725,0.0005075,120]
[340817673,1729873838182,-192.726,0.0005075,120]
[340817674,1729873838192,-192.726,0.0005075,120]
[340817675,1729873838201,-192.726,0.0005075,120]
[340817676,1729873838211,-192.726,0.0005075,120]
[340817677,1729873838221,-606.12,0.00050879,2]
[340817678,1729873838230,-208.0,0.0005088,2]
[340817679,1729873838240,-204216.65382105,0.0005088,2]
[340817680,1729873838250,-33453.27325334,0.000519,120]
[340817681,1729873838259,-150.0,0.000521,2]
[340817682,1729873838268,-558.08,0.00052639,2]
[340817683,1729873838278,-56881.29,0.00052639,2]
[340817684,1729873838289,-503.56374506,0.0005378,2]
[340817685,1729873838299,-208.0,0.0005388,2]
[340817686,1729873838309,-1501.45,0.0005409,14]
[340817687,1729873838319,-767.0,0.000542,120]
[340817688,1729873838328,-241.02,0.000547,7]
[340817689,1729873838337,-503.56374504,0.00054753,2]
[340817690,1729873838347,-3481.98,0.00054872,2]
[340817691,1729873838356,-15440.4664,0.00055586,2]
[340817692,1729873838366,-503.56374504,0.00055726,2]
[340817693,1729873838375,-503.56374504,0.00056699,2]
[340817694,1729873838385,-208.0,0.0005688,2]
[340817695,1729873838394,-809.0,0.00056936,2]
[340817696,1729873838404,-250.0,0.00056995,120]
[340817697,1729873838414,-503.56374504,0.00057671,2]
[340817698,1729873838423,-503.56374504,0.00058644,2]
[340817699,1729873838433,-188.7312293,0.00059,120]
[340817700,1729873838442,-568.97093123,0.0005909,2]
[340817701,1729873838451,-2572.24,0.00059336,2]
[340817702,1729873838460,-503.56374504,0.00059617,2]
[340817703,1729873838470,-250.0,0.00059819,120]
[340817704,1729873838479,-600.0,0.00059836,120]
[340817705,1729873838488,-201.71252036,0.00059927,31]
[340817706,1729873838498,-154.62,0.0005998,120]
[340817707,1729873838508,-656.47573264,0.0005998,7]
[340817708,1729873838517,-159087.763039,0.0005999,12]
[340817709,1729873838527,-21804.04636677,0.00059999,120]
[340817710,1729873838538,-5676.91,0.0006,120]
[340817711,1729873838547,-1834.78562814,0.0006,120]
[340817712,1729873838556,-560518.494,0.0006,120]
[340817713,1729873838565,-2000.0,0.0006,2]
[340817714,1729873838575,-4000.0,0.0006,120]
[340817715,1729873838584,-4055.3697669,0.0006,2]
[340817716,1729873838594,-3018.0,0.0006,120]
[340817717,1729873838603,-4820.8413042,0.00060059,12]
[340817718,1729873838613,-1281.4011,0.00060069,2]
[340817719,1729873838622,-262.2252,0.00060069,2]
[340817720,1729873838631,-325.27,0.00060106,2]
[340817721,1729873838641,-500.0,0.00060144,120]
[340817722,1729873838650,-152.0,0.00060153,3]
[340817723,1729873838660,-24104.206521,0.00060159,12]
[340817724,1729873838670,-400.0,0.00060167,120]
[340817725,1729873838679,-4820.8413042,0.00060263,12]
[340817726,1729873838689,-500.0,0.00060273,120]
[340817727,1729873838698,-500.0,0.00060273,120]
[340817728,1729873838708,-600.53,0.00060273,120]
[340817729,1729873838717,-798.54,0.00060273,120]
[340817730,1729873838730,-500.0,0.00060273,120]
[340817731,1729873838739,-761.5,0.00060273,120]
[340817732,1729873838748,-1271.68,0.00060273,120]
[340817733,1729873838757,-500.0,0.00060273,120]
[340817734,1729873838767,-3879.03,0.00060273,120]
[340817735,1729873838776,-3879.03,0.00060273,120]
[340817736,1729873838787,-3879.03,0.00060273,120]
[340817737,1729873838798,-3879.03,0.00060273,120]
[340817738,1729873838807,-3879.03,0.00060273,120]
[340817739,1729873838816,-500.0,0.00060273,120]
[340817740,1729873838825,-500.0,0.00060273,120]
[340817741,1729873838835,-500.0,0.00060273,120]
[340817742,1729873838844,-500.0,0.00060273,120]
[340817743,1729873838854,-500.0,0.00060273,120]
[340817744,1729873838864,-500.0,0.00060273,120]
[340817745,1729873838873,-499.89308435,0.00060273,120]
[340817746,1729873838883,-982.75,0.00060273,120]
[340817747,1729873838893,-982.75,0.00060273,120]
[340817748,1729873838902,-982.75,0.00060273,120]
[340817749,1729873838911,-982.75,0.00060273,120]
[340817750,1729873838921,-982.75,0.00060273,120]
[340817751,1729873838930,-500.0,0.00060273,120]
[340817752,1729873838940,-500.0,0.00060273,120]
[340817753,1729873838949,-500.0,0.00060273,120]
[340817754,1729873838959,-500.0,0.00060273,120]
[340817755,1729873838968,-500.0,0.00060273,120]
[340817756,1729873838977,-866.41,0.00060273,120]
[340817757,1729873838987,-866.41,0.00060273,120]
[340817758,1729873838996,-866.41,0.00060273,120]
[340817759,1729873839005,-866.41,0.00060273,120]
[340817760,1729873839015,-866.41,0.00060273,120]
[340817761,1729873839024,-500.0,0.00060273,120]
[340817762,1729873839034,-500.0,0.00060273,120]
[340817763,1729873839043,-500.0,0.00060273,120]
[340817764,1729873839053,-500.0,0.00060273,120]
[340817765,1729873839062,-500.0,0.00060273,120]
[340817766,1729873839071,-500.0,0.00060273,120]
[340817767,1729873839081,-478.526712,0.00060273,120]
[340817768,1729873839090,-500.0,0.00060273,120]
[340817769,1729873839099,-500.0,0.00060273,120]
[340817770,1729873839108,-232.76513978,0.00060273,120]
[340817771,1729873839118,-2625.0,0.000603,90]
[340817772,1729873839127,-503.56374504,0.0006059,2]
[340817773,1729873839137,-4820.8413042,0.00060709,12]
[340817774,1729873839146,-500.0,0.00060719,120]
[340817775,1729873839155,-500.0,0.00060827,120]
[340817776,1729873839164,-500.0,0.00060877,120]
[340817777,1729873839173,-500.0,0.00060877,120]
[340817778,1729873839183,-500.0,0.00060994,120]
[340817779,1729873839192,-500.0,0.00061109,120]
[340817780,1729873839202,-500.0,0.00061183,120]
[340817781,1729873839211,-500.0,0.00061362,120]
[340817782,1729873839221,-4820.8413042,0.00061369,12]
[340817783,1729873839230,-154.32496774,0.00061379,120]
[340817784,1729873839240,-460.0,0.00061379,120]
[340817785,1729873839249,-500.0,0.00061379,2]
[340817786,1729873839258,-500.0,0.00061379,2]
[340817787,1729873839268,-500.0,0.00061379,120]
[340817788,1729873839276,-500.0,0.00061379,2]
[340817789,1729873839286,-500.0,0.00061379,120]
[340817790,1729873839296,-500.0,0.00061379,120]
[340817791,1729873839306,-167.0,0.00061389,2]
[340817792,1729873839315,-500.0,0.00061412,120]
[340817793,1729873839325,-503.56374504,0.00061563,2]
[340817794,1729873839335,-782.66,0.00061781,60]
[340817795,1729873839344,-425.03,0.00061781,60]
[340817796,1729873839354,-757.42,0.00061781,60]
[340817797,1729873839363,-425.03,0.00061781,60]
[340817798,1729873839373,-425.03,0.00061781,60]
[340817799,1729873839382,-757.42,0.00061781,60]
[340817800,1729873839391,-757.42,0.00061781,60]
[340817801,1729873839400,-425.03,0.00061781,60]
[340817802,1729873839410,-757.42,0.00061781,60]
[340817803,1729873839419,-425.03,0.00061781,60]
[340817804,1729873839428,-251.64467946,0.00061889,15]
[340817805,1729873839438,-1065.0166,0.00061889,2]
[340817806,1729873839447,-4820.8413042,0.00061978,12]
[340817807,1729873839457,-496.91018,0.00061987,120]
[340817808,1729873839466,-500.0,0.00061987,120]
[340817809,1729873839476,-798.54,0.00061987,120]
[340817810,1729873839485,-1271.68,0.00061987,120]
[340817811,1729873839494,-600.53,0.00061988,120]
[340817812,1729873839505,-500.0,0.00061988,120]
[340817813,1729873839514,-761.5,0.00061988,120]
[340817814,1729873839523,-500.0,0.00061989,120]
[340817815,1729873839534,-500.0,0.00061989,2]
[340817816,1729873839544,-500.0,0.00061989,120]
[340817817,1729873839554,-500.0,0.00061989,120]
[340817818,1729873839564,-500.00000001,0.00061989,120]
[340817819,1729873839574,-500.0,0.00061989,120]
[340817820,1729873839583,-500.0,0.00061989,120]
[340817821,1729873839592,-600.53,0.00061989,120]
[340817822,1729873839601,-798.54,0.00061989,120]
[340817824,1729873839610,-500.0,0.00061989,120]
[340817825,1729873839619,-761.5,0.00061989,120]
[340817826,1729873839629,-1271.68,0.00061989,120]
[340817827,1729873839638,-3879.03,0.00061997,120]
[340817828,1729873839646,-500.0,0.00061997,120]
[340817829,1729873839655,-982.75,0.00061997,120]
[340817830,1729873839664,-500.0,0.00061997,120]
[340817831,1729873839673,-866.41,0.00061997,120]
[340817832,1729873839682,-500.0,0.00061997,120]
[340817833,1729873839692,-500.0,0.00061998,120]
[340817834,1729873839701,-500.0,0.00061998,120]
[340817835,1729873839710,-500.0,0.00061998,120]
[340817836,1729873839720,-501.77160792,0.00061998,120]
[340817837,1729873839731,-500.0,0.00061998,120]
[340817838,1729873839741,-500.0,0.00061998,120]
[340817839,1729873839750,-363.48026115,0.00061998,120]
[340817840,1729873839759,-500.0,0.00061998,120]
[340817841,1729873839768,-500.0,0.00061998,120]
[340817842,1729873839778,-500.0,0.00061998,120]
[340817843,1729873839788,-500.0,0.00061998,120]
[340817844,1729873839798,-500.0,0.00061998,2]
[340817845,1729873839807,-500.0,0.00061998,120]
[340817846,1729873839817,-500.0,0.00061998,120]
[340817847,1729873839825,-500.0,0.00061998,120]
[340817848,1729873839835,-627.35,0.00061998,120]
[340817849,1729873839844,-279.86241005,0.00061998,120]
[340817850,1729873839853,-500.0,0.00061998,120]
[340817851,1729873839862,-798.54,0.00061998,120]
[340817852,1729873839872,-500.0,0.00061998,120]
[340817853,1729873839881,-1238.11,0.00061998,120]
[340817854,1729873839890,-222.62407103,0.00061998,120]
[340817855,1729873839899,-256.15687466,0.00061998,120]
[340817856,1729873839908,-1271.68,0.00061998,120]
[340817857,1729873839918,-500.0,0.00061998,7]
[340817858,1729873839927,-500.0,0.00061998,120]
[340817859,1729873839936,-497.94012,0.00061998,120]
[340817860,1729873839946,-842.94,0.00061998,120]
[340817861,1729873839955,-500.0,0.00061998,120]
[340817862,1729873839964,-500.0,0.00061998,120]
[340817863,1729873839974,-500.0,0.00061998,120]
[340817864,1729873839983,-500.0,0.00061998,120]
[340817865,1729873839992,-179.05231008,0.00061999,120]
[340817866,1729873840002,-500.0,0.00061999,120]
[340817867,1729873840011,-500.0,0.00061999,2]
[340817868,1729873840020,-500.0,0.00061999,120]
[340817869,1729873840029,-500.0,0.00061999,120]
[340817870,1729873840041,-500.0,0.00061999,2]
[340817871,1729873840050,-500.0,0.00061999,2]
[340817872,1729873840059,-500.0,0.00061999,120]
[340817873,1729873840068,-500.0,0.00061999,120]
[340817874,1729873840076,-500.0,0.00061999,120]
[340817875,1729873840085,-500.0,0.00061999,120]
[340817876,1729873840095,-500.0,0.00061999,120]
[340817877,1729873840104,-168.59373657,0.00061999,120]
[340817878,1729873840113,-500.0,0.00061999,120]
[340817879,1729873840122,-498.93513,0.00061999,120]
[340817880,1729873840131,-340.78547134,0.00061999,120]
[340817881,1729873840220,-500.0,0.00061999,120]
[340817883,1729873840243,-530.45,0.00061999,120]
[340817884,1729873840253,-500.0,0.00061999,120]
[340817885,1729873840263,-500.0,0.00061999,120]
[340817886,1729873840273,-500.0,0.00061999,120]
[340817887,1729873840284,-253.71808288,0.00061999,120]
[340817888,1729873840298,-500.0,0.00061999,120]
[340817889,1729873840308,-600.53,0.00061999,120]
[340817890,1729873840318,-600.53,0.00061999,120]
[340817891,1729873840327,-600.53,0.00061999,120]
[340817892,1729873840336,-500.0,0.00061999,120]
[340817893,1729873840345,-500.0,0.00061999,120]
[340817895,1729873840354,-798.54,0.00061999,120]
[340817896,1729873840363,-798.54,0.00061999,120]
[340817897,1729873840372,-798.54,0.00061999,120]
[340817898,1729873840381,-500.0,0.00061999,120]
[340817899,1729873840390,-500.0,0.00061999,120]
[340817900,1729873840400,-500.0,0.00061999,120]
[340817901,1729873840410,-500.0,0.00061999,55]
[340817902,1729873840419,-500.0,0.00061999,120]
[340817903,1729873840429,-500.0,0.00061999,120]
[340817904,1729873840438,-761.5,0.00061999,120]
[340817905,1729873840447,-761.5,0.00061999,120]
[340817906,1729873840457,-761.5,0.00061999,120]
[340817907,1729873840466,-1271.68,0.00061999,120]
[340817908,1729873840475,-1271.68,0.00061999,120]
[340817909,1729873840484,-1271.68,0.00061999,120]
[340817910,1729873840494,-500.0,0.00061999,120]
[340817911,1729873840503,-500.0,0.00061999,120]
[340817912,1729873840513,-315.86689653,0.00061999,7]
[340817913,1729873840523,-500.0,0.00061999,120]
[340817914,1729873840532,-500.0,0.00061999,120]
[340817915,1729873840542,-1000.0,0.00061999,120]
[340817916,1729873840551,-500.0,0.00061999,120]
[340817917,1729873840559,-2461.99,0.00061999,120]
[340817918,1729873840568,-500.0,0.00061999,120]
[340817919,1729873840578,-5000.0,0.00062,120]
[340817920,1729873840587,-1000.0,0.00062099,2]
[340817921,1729873840596,-1499.5773,0.00062099,2]
[340817922,1729873840605,-203.6619,0.000621,2]
[340817923,1729873840614,-500.0,0.00062128,120]
[340817924,1729873840623,-500.0,0.00062192,120]
[340817925,1729873840633,-600.53,0.00062199,120]
[340817926,1729873840642,-500.0,0.00062199,120]
[340817927,1729873840652,-761.5,0.00062199,120]
[340817928,1729873840661,-5000.0,0.000622,120]
[340817929,1729873840671,-361.95,0.00062324,2]
[340817930,1729873840680,-251.64467938,0.0006239,15]
[340817931,1729873840690,-1970.96970042,0.00062396,2]
[340817932,1729873840699,-798.54,0.00062399,120]
[340817933,1729873840709,-1271.68,0.00062399,120]
[340817934,1729873840719,-11350.81153981,0.000624,120]
[340817935,1729873840732,-500.0,0.0006245,120]
[340817936,1729873840741,-500.0,0.00062455,120]
[340817937,1729873840751,-656.47573264,0.00062489,7]
[340817938,1729873840760,-7500.0,0.00062493,120]
[340817939,1729873840770,-500.0,0.00062493,120]
[340817940,1729873840779,-20812.85,0.00062493,120]
[340817941,1729873840795,-975.23,0.00062493,120]
[340817942,1729873840804,-549.13402542,0.00062493,120]
[340817943,1729873840814,-1651.15,0.00062493,120]
[340817944,1729873840823,-500.0,0.00062493,120]
[340817945,1729873840833,-500.0,0.00062493,21]
[340817946,1729873840842,-500.0,0.00062493,120]
[340817947,1729873840852,-500.0,0.00062493,120]
[340817948,1729873840861,-727.54,0.00062493,120]
[340817949,1729873840871,-500.0,0.00062493,120]
[340817950,1729873840880,-500.0,0.00062493,120]
[340817951,1729873840890,-196.65165031,0.00062493,120]
[340817952,1729873840900,-500.0,0.00062493,120]
[340817953,1729873840910,-1583.09,0.00062493,120]
[340817954,1729873840920,-500.0,0.00062493,120]
[340817955,1729873840929,-1131.31,0.00062493,120]
[340817956,1729873840938,-2335.34614155,0.00062494,30]
[340817957,1729873840947,-3879.03,0.00062495,120]
[340817958,1729873840957,-500.0,0.00062495,120]
[340817959,1729873840966,-982.75,0.00062495,120]
[340817960,1729873840975,-500.0,0.00062495,120]
[340817961,1729873840984,-866.41,0.00062495,120]
[340817962,1729873840993,-278.77264663,0.00062495,120]
[340817963,1729873841002,-30030.2490453,0.00062496,3]
[340817964,1729873841011,-156295.81602232,0.00062496,3]
[340817965,1729873841071,-576.29925885,0.00062496,3]
[340817973,1729873842912,-500.0,0.00060273,120]
[340817975,1729873842923,-500.0,0.00060273,120]
[340817977,1729873842934,-500.0,0.00060273,120]
[340817978,1729873842944,-500.0,0.00060273,120]
[340817980,1729873842955,-500.0,0.00060273,120]
[340817982,1729873842965,-198.28489694,0.00061999,120]
[340817984,1729873842977,-1277.03015723,0.00062496,3]
[340817986,1729873842989,-151.0,0.00062496,120]
[340817989,1729873843000,-151.0,0.00062496,120]
[340817991,1729873843011,-151.0,0.00062496,120]
[340817993,1729873843023,-151.0,0.00062496,120]
[340817995,1729873843034,-151.0,0.00062496,120]
[340817996,1729873843044,-152.54656,0.00062496,120]
[340817997,1729873843054,-151.0,0.00062496,120]
[340817998,1729873843066,-151.0,0.00062496,120]
[340817999,1729873843077,-500.0,0.00062497,120]
[340818000,1729873843087,-565.75,0.00062497,120]
[340818001,1729873843098,-500.0,0.00062497,120]
[340818002,1729873843108,-46.15478583,0.00062497,120]
[340818003,1729873843127,-517.62521417,0.00062497,120]
[340818004,1729873843138,-588.02,0.00062497,120]
[340818005,1729873843149,-1104.16,0.00062497,120]
[340818006,1729873843160,-500.0,0.00062497,120]
[340818007,1729873843172,-500.0,0.00062497,120]
[340818008,1729873843183,-148.18454558,0.00062497,120]
[340818021,1729873846543,-351.81545442,0.00062497,120]
[340818022,1729873846554,-565.48,0.00062497,120]
[340818023,1729873846565,-500.0,0.00062497,120]
[340818024,1729873846577,-714.56,0.00062497,120]
[340818025,1729873846588,-993.8,0.00062497,120]
[340818026,1729873846599,-1223.61,0.00062497,4]
[340818027,1729873846610,-500.0,0.00062497,120]
[340818028,1729873846622,-588.37,0.00062497,120]
[340818029,1729873846633,-1736.79,0.00062497,120]
[340818030,1729873846644,-500.0,0.00062498,120]
[340818031,1729873846655,-500.0,0.00062498,120]
[340818032,1729873846665,-500.0,0.00062498,120]
[340818033,1729873846675,-500.0,0.00062498,120]
[340818034,1729873846686,-500.0,0.00062498,120]
[340818035,1729873846697,-500.0,0.00062498,120]
[340818036,1729873846708,-500.0,0.00062498,120]
[340818037,1729873846719,-500.0,0.00062498,2]
[340818038,1729873846734,-500.0,0.00062498,120]
[340818039,1729873846745,-500.0,0.00062498,120]
[340818040,1729873846756,-500.0,0.00062498,120]
[340818041,1729873846768,-627.35,0.00062498,120]
[340818042,1729873846778,-500.0,0.00062498,120]
[340818043,1729873846789,-500.0,0.00062498,120]
[340818044,1729873846928,-1882.3403603,0.00062498,120]
[340818045,1729873846942,-500.0,0.00062498,7]
[340818046,1729873846953,-500.0,0.00062498,120]
[340818047,1729873846963,-842.94,0.00062498,120]
[340818048,1729873846973,-500.0,0.00062498,120]
[340818049,1729873846984,-500.0,0.00062498,120]
[340818050,1729873846993,-500.0,0.00062498,120]
[340818051,1729873847003,-500.0,0.00062499,120]
[340818052,1729873847012,-500.0,0.00062499,120]
[340818053,1729873847022,-500.0,0.00062499,120]
[340818054,1729873847031,-500.0,0.00062499,120]
[340818055,1729873847042,-602.45736446,0.00062499,2]
[340818056,1729873847052,-500.0,0.00062499,120]
[340818057,1729873847061,-500.0,0.00062499,120]
[340818058,1729873847070,-500.0,0.00062499,120]
[340818059,1729873847080,-500.0,0.00062499,120]
[340818060,1729873847090,-500.0,0.00062499,120]
[340818061,1729873847099,-425.26744,0.00062499,120]
[340818062,1729873847109,-500.0,0.00062499,120]
[340818063,1729873847118,-500.0,0.00062499,2]
[340818064,1729873847128,-500.0,0.00062499,120]
[340818065,1729873847137,-454.72,0.00062499,120]
[340818066,1729873847147,-500.0,0.00062499,120]
[340818067,1729873847157,-627.35,0.00062499,120]
[340818068,1729873847166,-583.78,0.00062499,120]
[340818069,1729873847175,-500.0,0.00062499,120]
[340818070,1729873847185,-530.45,0.00062499,120]
[340818071,1729873847194,-500.0,0.00062499,120]
[340818072,1729873847205,-500.0,0.00062499,120]
[340818073,1729873847215,-500.0,0.00062499,120]
[340818074,1729873847225,-600.53,0.00062499,120]
[340818075,1729873847234,-600.53,0.00062499,120]
[340818076,1729873847244,-600.53,0.00062499,120]
[340818077,1729873847254,-600.53,0.00062499,120]
[340818078,1729873847263,-600.53,0.00062499,120]
[340818079,1729873847273,-500.0,0.00062499,120]
[340818080,1729873847283,-500.0,0.00062499,120]
[340818081,1729873847298,-798.54,0.00062499,120]
[340818082,1729873847308,-798.54,0.00062499,120]
[340818083,1729873847317,-798.54,0.00062499,120]
[340818084,1729873847326,-798.54,0.00062499,120]
[340818085,1729873847335,-500.0,0.00062499,120]
[340818086,1729873847345,-615.99844816,0.00062499,120]
[340818087,1729873847356,-231.45419367,0.00062499,120]
[340818088,1729873847369,-268.54580633,0.00062499,120]
[340818089,1729873847378,-542.69893422,0.00062499,120]
[340818090,1729873847388,-500.0,0.00062499,55]
[340818091,1729873847398,-500.0,0.00062499,120]
[340818092,1729873847408,-500.0,0.00062499,120]
[340818093,1729873847418,-197.94073044,0.00062499,120]
[340818094,1729873847429,-367.80926956,0.00062499,120]
[340818095,1729873847439,-7500.0,0.00062499,120]
[340818096,1729873847448,-500.0,0.00062499,120]
[340818097,1729873847459,-563.78,0.00062499,120]
[340818098,1729873847468,-500.0,0.00062499,120]
[340818099,1729873847478,-588.02,0.00062499,120]
[340818100,1729873847487,-13250.56524999,0.00062499,120]
[340818108,1729874725996,368.51006896,0.00043038,120]
[340818118,1729874939558,158.85,0.00015342,2]
[340818119,1729874950112,-150.0,0.000521,2]
[340818120,1729874950134,-243.4,0.000547,7]
[340818121,1729874950156,-460.0,0.00054794,120]
[340818122,1729874950178,-1817.87097181,0.00055,120]
[340818123,1729874962053,150.0,0.000522,2]
[340818124,1729874962364,77.50444619,0.000548,7]
[340818132,1729875032043,-371.63241637,0.00043033,2]
[340818133,1729875032053,-150.34428894,0.00054,40]
[340818134,1729875032100,-44943.99128055,0.00054,40]
[340818135,1729875032156,-2518.51600001,0.00054,40]
[340818136,1729875032170,-1782.35820347,0.00054,40]
[340818137,1729875032182,-4028.17876211,0.00054,40]
[340818154,1729875038044,-1241.83745801,0.00054,40]
[340818160,1729875038101,-15400.07400691,0.00054,40]
[340818161,1729875038110,-190.44555381,0.000548,7]
[340818163,1729875038120,-380.2,0.00057087,2]
[340818164,1729875038129,-743.48199088,0.00058,120]
[340818165,1729875038140,-250.0,0.00059071,120]
[340818166,1729875038151,-1000.0,0.00059086,120]
[340818167,1729875038160,-250.0,0.00059169,120]
[340818168,1729875038171,-380.2,0.00059351,2]
[340818169,1729875038180,-26587.40565137,0.0005988,2]
[340818170,1729875038189,-500.0,0.00059999,14]
[340818171,1729875038198,-243.6,0.0006,120]
[340818172,1729875038207,-12499.99,0.0006,120]
[340818173,1729875038217,-2661.28094578,0.0006,120]
[340818174,1729875038228,-4053.12,0.0006,120]
[340818175,1729875038241,-5785.59905422,0.0006,120]
[340818176,1729875038253,-2088.83666171,0.0006,15]
[340818177,1729875038264,-500.0,0.00060042,120]
[340818178,1729875038273,-7300.6357,0.00060073,2]
[340818179,1729875038284,-1065.0166,0.00060073,2]
[340818180,1729875038294,-12500.0,0.00060125,120]
[340818181,1729875038305,-500.0,0.00060141,120]
[340818182,1729875038316,-500.0,0.00060158,120]
[340818183,1729875038327,-1000.0,0.00060163,2]
[340818184,1729875038337,-2500.0,0.00060163,2]
[340818185,1729875038348,-9227.7873,0.00060163,2]
[340818186,1729875038360,-1564.26168994,0.00060172,15]
[340818187,1729875038371,-203.6619,0.00060173,2]
[340818188,1729875038381,-71711.0291,0.00060173,2]
[340818189,1729875038392,-202.94291607,0.00060173,32]
[340818190,1729875038403,-279.81665803,0.00060243,120]
[340818191,1729875038412,-14332.2116033,0.00060263,14]
[340818192,1729875038424,-7500.0,0.00060272,120]
[340818193,1729875038433,-500.0,0.00060273,120]
[340818194,1729875038442,-500.0,0.00060273,120]
[340818195,1729875038452,-500.0,0.00060273,120]
[340818196,1729875038462,-500.0,0.00060273,120]
[340818197,1729875038472,-500.0,0.00060273,120]
[340818198,1729875038482,-500.0,0.00060273,120]
[340818199,1729875038491,-500.0,0.00060273,120]
[340818200,1729875038502,-500.0,0.00060273,120]
[340818201,1729875038512,-500.0,0.00060273,120]
[340818202,1729875038521,-784.19,0.00060273,120]
[340818203,1729875038531,-784.19,0.00060273,120]
[340818204,1729875038540,-784.19,0.00060273,120]
[340818205,1729875038549,-784.19,0.00060273,120]
[340818206,1729875038558,-784.19,0.00060273,120]
[340818207,1729875038567,-500.0,0.00060273,120]
[340818208,1729875038577,-500.0,0.00060273,120]
[340818209,1729875038586,-451.57661202,0.00060273,120]
[340818211,1729875038595,-500.0,0.00060273,120]
[340818212,1729875038604,-500.0,0.00060273,120]
[340818213,1729875038613,-500.0,0.00060273,120]
[340818214,1729875038622,-500.0,0.00060273,120]
[340818215,1729875038632,-500.0,0.00060273,120]
[340818216,1729875038641,-500.0,0.00060273,120]
[340818217,1729875038650,-500.0,0.00060273,120]
[340818218,1729875038660,-500.0,0.00060273,120]
[340818219,1729875038670,-500.0,0.00060273,120]
[340818220,1729875038680,-496.77545,0.00060273,120]
[340818221,1729875038690,-500.0,0.00060273,120]
[340818222,1729875038699,-461.94025855,0.00060273,120]
[340818223,1729875038708,-500.0,0.00060273,120]
[340818224,1729875038718,-500.0,0.00060273,120]
[340818225,1729875038728,-500.0,0.00060273,120]
[340818226,1729875038740,-500.0,0.00060273,120]
[340818227,1729875038751,-500.0,0.00060273,120]
[340818228,1729875038762,-500.0,0.00060273,120]
[340818229,1729875038771,-868.83,0.00060273,120]
[340818230,1729875038780,-500.0,0.00060273,120]
[340818231,1729875038789,-500.0,0.00060273,120]
[340818232,1729875038798,-500.0,0.00060273,120]
[340818233,1729875038807,-496.91018,0.00060273,120]
[340818234,1729875038816,-500.0,0.00060273,120]
[340818235,1729875038825,-256.15687466,0.00060273,120]
[340818236,1729875038835,-497.74975,0.00060273,120]
[340818237,1729875038843,-500.0,0.00060273,120]
[340818238,1729875038852,-500.0,0.00060273,120]
[340818239,1729875038862,-222.62407103,0.00060273,120]
[340818240,1729875038871,-500.0,0.00060273,120]
[340818241,1729875038880,-685.17,0.00060273,120]
[340818242,1729875038889,-660.65,0.00060273,120]
[340818243,1729875038898,-660.65,0.00060273,120]
[340818244,1729875038907,-660.65,0.00060273,120]
[340818245,1729875038916,-660.65,0.00060273,120]